bitfinex/quotes_BTCUSD_20251209
["timestamp","ask_amount","ask_price","bid_price","bid_amount"]
[1765291089500,0.52168087,90630.0,90629.0,0.0011155]
[1765291089828,0.25,90610.0,90586.0,0.02958116]
[1765291090064,0.01103898,90588.0,90586.0,0.00038516]
[1765291090352,0.03966368,90587.0,90586.0,0.00038516]
[1765291090551,0.01764,90587.0,90586.0,0.00038516]
[1765291091443,0.0110385,90592.0,90586.0,0.00038516]
[1765291091588,0.01103801,90596.0,90592.0,0.23180824]
[1765291091783,0.01764,90591.0,90589.0,0.23181572]
[1765291092184,0.01103691,90605.0,90599.0,0.01103764]
[1765291092385,0.22074453,90603.0,90600.0,0.01103752]
[1765291092599,0.02867704,90604.0,90594.0,0.01103825]
[1765291092600,0.01764,90604.0,90594.0,0.01103825]
[1765291092803,0.01103764,90599.0,90595.0,0.01103813]
[1765291093034,0.01103728,90602.0,90588.0,0.022088]
[1765291093035,0.02867704,90604.0,90599.0,0.01103764]
[1765291093260,0.01103789,90597.0,90594.0,0.23180182]
[1765291093437,0.23178539,90602.0,90594.0,0.23180182]
[1765291093438,0.01103728,90602.0,90597.0,0.23179556]
[1765291093642,0.01103728,90602.0,90598.0,0.01103777]
[1765291093960,0.01103728,90602.0,90588.0,0.022088]
[1765291093961,0.01103825,90594.0,90588.0,0.03312698]
[1765291094157,0.23180525,90594.0,90590.0,0.22077403]
[1765291094342,0.003,90596.0,90594.0,0.22076374]
[1765291094538,0.22076584,90594.0,90591.0,0.04971421]
[1765291094745,0.01764,90593.0,90591.0,0.27048583]
[1765291095003,0.22078072,90588.0,90586.0,0.00038516]
[1765291095142,0.00161287,90587.0,90586.0,0.00038516]
[1765291096008,0.01925287,90587.0,90586.0,0.00038516]
[1765291096876,0.01925287,90587.0,90586.0,0.00238516]
[1765291097057,0.01925287,90587.0,90586.0,0.00038516]
[1765291097902,0.30995287,90587.0,90586.0,0.00038516]
[1765291098141,0.30995287,90587.0,90546.0,0.02958116]
[1765291098142,0.30995287,90587.0,90538.0,0.02958116]
[1765291098143,0.22086756,90552.0,90538.0,0.02958116]
[1765291098292,0.01764,90551.0,90550.0,0.5001156]
[1765291098490,0.30834,90551.0,90550.0,0.5001156]
[1765291098897,0.33036368,90551.0,90550.0,0.5001156]
[1765291099421,1.27634168,90551.0,90550.0,0.5001156]
[1765291099583,1.27934168,90551.0,90550.0,0.0001156]
[1765291099966,1.3868493,90551.0,90550.0,0.0001156]
[1765291100186,1.28095455,90551.0,90550.0,0.0001156]
[1765291100444,1.28295455,90551.0,90550.0,0.0001156]
[1765291100747,1.27795455,90551.0,90550.0,0.0001156]
[1765291100952,1.28095455,90551.0,90550.0,0.0001156]
[1765291101092,1.34647754,90551.0,90550.0,0.0001156]
[1765291101292,1.45698516,90551.0,90550.0,0.0001156]
[1765291101476,1.45398516,90551.0,90550.0,0.0001156]
[1765291101925,1.45698516,90551.0,90550.0,0.0001156]
[1765291102128,1.45398516,90551.0,90550.0,0.0001156]
[1765291102327,1.45798516,90551.0,90550.0,0.0001156]
[1765291102730,1.34351754,90551.0,90550.0,0.0001156]
[1765291102971,1.34651754,90551.0,90550.0,0.0001156]
[1765291103179,1.34351754,90551.0,90550.0,0.0001156]
[1765291103387,1.26031455,90551.0,90550.0,0.0001156]
[1765291103559,0.61378655,90551.0,90550.0,0.0001156]
[1765291103723,0.72429417,90551.0,90550.0,0.0001156]
[1765291103921,0.71729417,90551.0,90550.0,0.0001156]
[1765291104127,0.77981716,90551.0,90550.0,0.0001156]
[1765291104367,0.78281716,90551.0,90550.0,1e-08]
[1765291104745,0.7930086,90551.0,90550.0,1e-08]
[1765291104945,0.7753286,90551.0,90550.0,1e-08]
[1765291105156,0.65462954,90551.0,90550.0,1e-08]
[1765291105368,0.67630954,90551.0,90550.0,1e-08]
[1765291105544,0.67230954,90551.0,90550.0,1e-08]
[1765291105965,0.67830954,90551.0,90550.0,1e-08]
[1765291106126,0.67530954,90551.0,90550.0,1e-08]
[1765291106331,0.65162954,90551.0,90550.0,1e-08]
[1765291106537,0.56905155,90551.0,90550.0,0.00100001]
[1765291106747,0.01661287,90551.0,90550.0,0.00100001]
[1765291106947,0.25043998,90551.0,90550.0,1e-08]
[1765291107222,0.53705187,90551.0,90550.0,0.00100001]
[1765291107367,0.21548587,90551.0,90550.0,0.00100001]
[1765291107550,0.26247298,90551.0,90550.0,0.00100001]
[1765291107754,0.26240855,90551.0,90550.0,0.00100001]
[1765291108066,0.64659249,90551.0,90550.0,0.00100001]
[1765291108486,0.65761617,90551.0,90550.0,1e-08]
[1765291108878,0.55410855,90551.0,90550.0,0.00100001]
[1765291109077,0.29731287,90551.0,90550.0,1e-08]
[1765291109277,0.30999287,90551.0,90550.0,1e-08]
[1765291109479,0.31399287,90551.0,90550.0,1e-08]
[1765291109902,0.50562787,90551.0,90550.0,0.00248352]
[1765291110066,0.50962787,90551.0,90550.0,0.00248352]
[1765291110265,0.63815917,90551.0,90550.0,0.00248352]
[1765291110469,0.69968216,90551.0,90550.0,0.00248352]
[1765291111074,0.69668216,90551.0,90550.0,0.00248352]
[1765291111892,0.69968216,90551.0,90550.0,0.00248352]
[1765291112092,0.69668216,90551.0,90550.0,0.00248352]
[1765291112321,0.69668216,90551.0,90530.0,0.0002]
[1765291112322,0.59616547,90531.0,90530.0,0.0002]
[1765291112516,2.61384547,90531.0,90530.0,0.00011548]
[1765291113534,2.59616547,90531.0,90530.0,0.00011548]
[1765291113707,2.61384547,90531.0,90530.0,0.00011548]
[1765291113908,0.94851247,90531.0,90530.0,0.00011548]
[1765291114108,0.95351247,90531.0,90530.0,0.00011548]
[1765291115318,0.96051247,90531.0,90530.0,0.00111548]
[1765291115564,0.94851247,90531.0,90530.0,0.00011548]
[1765291115755,0.98230983,90531.0,90530.0,0.00011548]
[1765291115918,0.98830983,90531.0,90530.0,0.00111548]
[1765291116119,0.98730983,90531.0,90530.0,0.00011548]
[1765291116555,1.0035402,90531.0,90530.0,0.00111548]
[1765291116716,0.9925402,90531.0,90530.0,0.00011548]
[1765291116912,0.9925402,90531.0,90530.0,1e-08]
[1765291117114,0.9965402,90531.0,90530.0,1e-08]
[1765291118103,0.9965402,90531.0,90530.0,0.00059427]
[1765291118277,1.0025402,90531.0,90530.0,0.00159427]
[1765291118478,0.99230983,90531.0,90530.0,0.00159427]
[1765291118723,1.00255731,90531.0,90530.0,0.00159427]
[1765291119123,0.99855731,90531.0,90530.0,1e-08]
[1765291119399,1.00355731,90531.0,90530.0,1e-08]
[1765291119757,0.99855731,90531.0,90530.0,1e-08]
[1765291119960,0.99855731,90531.0,90480.0,0.0002]
[1765291119961,0.22104088,90481.0,90480.0,0.0002]
[1765291120167,0.23872088,90481.0,90480.0,0.00058585]
[1765291120402,0.23211491,90473.0,90469.0,0.22107016]
[1765291120739,0.01105289,90474.0,90469.0,0.01116915]
[1765291120941,0.00099999,90480.0,90477.0,0.01105253]
[1765291121153,0.2907,90481.0,90476.0,0.22105309]
[1765291121357,0.30175106,90489.0,90469.0,0.00011564]
[1765291121358,0.01104899,90506.0,90477.0,0.0110575]
[1765291121565,0.01768,90505.0,90502.0,0.23203757]
[1765291121809,0.01204849,90510.0,90509.0,0.22097249]
[1765291121810,0.00099999,90510.0,90509.0,0.22097249]
[1765291122054,0.01768,90511.0,90507.0,0.01104886]
[1765291122283,0.01768,90511.0,90503.0,0.02541371]
[1765291122284,0.2907,90519.0,90518.0,0.22095052]
[1765291122496,0.01104642,90527.0,90523.0,0.01104691]
[1765291122707,0.01104569,90533.0,90527.0,0.01104642]
[1765291122912,0.01104569,90533.0,90490.0,0.41596703]
[1765291122913,0.00038459,90533.0,90532.0,0.01104581]
[1765291123340,0.00038459,90533.0,90532.0,0.10493353]
[1765291123341,0.01806459,90533.0,90532.0,0.10493353]
[1765291124529,0.00038459,90533.0,90532.0,0.10493353]
[1765291124902,0.00038459,90533.0,90532.0,0.10693353]
[1765291125309,0.00038459,90533.0,90532.0,0.10493353]
[1765291125526,0.00038459,90533.0,90532.0,0.10893353]
[1765291125779,0.00038459,90533.0,90532.0,0.10993353]
[1765291126315,0.00038459,90533.0,90532.0,0.03813381]
[1765291128339,0.00038459,90533.0,90532.0,0.03313381]
[1765291128780,0.00138459,90533.0,90532.0,0.08056519]
[1765291128982,0.00038459,90533.0,90532.0,0.07456519]
[1765291129189,0.00038459,90533.0,90532.0,0.07256519]
[1765291129340,0.00038459,90533.0,90532.0,0.1391786]
[1765291129341,0.00138459,90533.0,90532.0,0.1391786]
[1765291129540,0.00138459,90533.0,90532.0,0.1411786]
[1765291130902,0.00138459,90533.0,90532.0,0.26459315]
[1765291131964,0.00138459,90533.0,90532.0,0.1411786]
[1765291133157,0.00138459,90533.0,90532.0,0.20207016]
[1765291133327,0.00138459,90533.0,90532.0,0.26459315]
[1765291134542,0.00138459,90533.0,90532.0,0.32362555]
[1765291134744,0.00138459,90533.0,90532.0,0.61432555]
[1765291134945,0.00138459,90533.0,90532.0,0.55529315]
[1765291135186,0.2907,90576.0,90532.0,0.10373111]
[1765291135485,0.01104093,90572.0,90567.0,0.01104154]
[1765291135641,0.0110413,90569.0,90564.0,0.01104191]
[1765291135829,0.00161287,90569.0,90568.0,0.01104142]
[1765291136215,0.00161287,90569.0,90565.0,0.01104179]
[1765291136216,0.01104142,90568.0,90565.0,0.02208801]
[1765291136408,0.00161287,90569.0,90566.0,0.22083342]
[1765291136608,0.00161287,90569.0,90566.0,0.01104167]
[1765291136813,0.00161287,90569.0,90567.0,0.22083055]
[1765291137922,0.00161287,90569.0,90568.0,0.22082854]
[1765291138160,0.005,90569.0,90568.0,0.24291655]
[1765291138362,0.007,90569.0,90568.0,0.24291655]
[1765291138815,0.005,90569.0,90568.0,0.24291655]
[1765291138983,0.01768,90575.0,90568.0,0.24291655]
[1765291138984,0.01768,90575.0,90572.0,0.23185772]
[1765291139162,0.01768,90575.0,90573.0,0.22081601]
[1765291139375,0.01768,90575.0,90574.0,0.29148223]
[1765291139616,0.0001154,90576.0,90574.0,0.29148223]
[1765291139617,0.0001154,90576.0,90575.0,0.24289949]
[1765291140602,0.63666971,90620.0,90574.0,0.26939422]
[1765291140603,0.63666971,90620.0,90590.0,0.53356292]
[1765291140604,0.00099999,90620.0,90590.0,0.53356292]
[1765291140841,0.002047,90591.0,90590.0,0.61372591]
[1765291141028,0.00139999,90630.0,90629.0,0.22067991]
[1765291141029,0.0004,90630.0,90629.0,0.22067991]
[1765291141236,0.00078547,90630.0,90629.0,0.24276792]
[1765291141680,0.00194263,90630.0,90629.0,0.24276792]
[1765291142216,0.00194263,90630.0,90629.0,0.53346792]
[1765291142217,0.00494263,90630.0,90629.0,0.53346792]
[1765291142416,0.00194263,90630.0,90629.0,0.55114792]
[1765291142640,0.00194263,90630.0,90629.0,0.59972822]
[1765291142840,0.00194263,90630.0,90629.0,0.57764021]
[1765291143018,0.00194263,90630.0,90629.0,0.59972822]
[1765291143741,0.00394263,90630.0,90629.0,0.57760021]
[1765291143940,0.00394263,90630.0,90629.0,0.59968822]
[1765291144140,0.00194263,90630.0,90629.0,0.58404822]
[1765291144373,0.0035555,90630.0,90629.0,0.002]
[1765291144782,0.0035555,90630.0,90625.0,0.03312249]
[1765291144783,0.0035555,90630.0,90625.0,0.01103448]
[1765291144920,0.00239834,90630.0,90628.0,0.22068026]
[1765291145125,0.00239834,90630.0,90629.0,0.002]
[1765291145640,0.01103399,90629.0,90626.0,0.01103436]
[1765291145822,0.01103399,90629.0,90621.0,0.00999457]
[1765291145823,0.01103484,90622.0,90618.0,0.01103533]
[1765291146023,0.2317318,90622.0,90621.0,0.02208801]
[1765291146280,0.01103545,90617.0,90613.0,0.00789571]
[1765291146533,0.01264771,90622.0,90600.0,0.01764]
[1765291146534,0.00161287,90622.0,90621.0,0.022088]
[1765291146657,0.2907,90649.0,90629.0,0.24276791]
[1765291146658,0.00478547,90630.0,90629.0,0.24276791]
[1765291146860,0.00078547,90630.0,90629.0,0.24276791]
[1765291147199,0.00078547,90630.0,90629.0,0.53346791]
[1765291147200,0.00378547,90630.0,90629.0,0.53346791]
[1765291147343,0.00378547,90630.0,90629.0,0.57885948]
[1765291147543,0.00078547,90630.0,90629.0,0.57885948]
[1765291147993,0.00478547,90630.0,90629.0,0.57885948]
[1765291148254,0.00078547,90630.0,90629.0,0.57885948]
[1765291148673,0.00178547,90630.0,90629.0,0.57885948]
[1765291148899,0.00078547,90630.0,90629.0,0.58085948]
[1765291149124,1e-08,90630.0,90629.0,0.64338247]
[1765291149575,1e-08,90630.0,90629.0,0.66102247]
[1765291149745,1e-08,90630.0,90629.0,0.59849948]
[1765291149893,1e-08,90630.0,90629.0,0.59649948]
[1765291150482,1e-08,90630.0,90629.0,0.59849948]
[1765291150888,1e-08,90630.0,90629.0,1.06898247]
[1765291151014,1e-08,90630.0,90629.0,1.07298247]
[1765291151200,1e-08,90630.0,90629.0,1.07798247]
[1765291151608,1e-08,90630.0,90629.0,1.07298247]
[1765291151810,1e-08,90630.0,90629.0,1.06898247]
[1765291152089,1e-08,90630.0,90629.0,1.08198247]
[1765291152223,1e-08,90630.0,90629.0,0.59185948]
[1765291152407,1e-08,90630.0,90629.0,0.31879948]
[1765291153273,1e-08,90630.0,90629.0,1.71963547]
[1765291153473,1e-08,90630.0,90629.0,1.11581247]
[1765291153766,1e-08,90630.0,90629.0,0.66502247]
[1765291154085,1e-08,90630.0,90629.0,0.66102247]
[1765291154285,1e-08,90630.0,90629.0,0.60149948]
[1765291154690,1e-08,90630.0,90629.0,0.66402247]
[1765291154901,1e-08,90630.0,90629.0,0.65902247]
[1765291155264,1e-08,90630.0,90629.0,0.60649948]
[1765291155461,1e-08,90630.0,90629.0,0.29815948]
[1765291155719,1e-08,90630.0,90629.0,0.01]
[1765291155894,1e-08,90630.0,90629.0,0.032088]
[1765291156100,0.00161288,90630.0,90629.0,0.032088]
[1765291156534,0.00161288,90630.0,90629.0,0.005]
[1765291156732,0.00161288,90630.0,90629.0,0.009]
[1765291156955,0.00161288,90630.0,90629.0,0.004]
[1765291157346,0.00261287,90630.0,90629.0,0.0296763]
[1765291157574,0.00561288,90630.0,90629.0,0.0296763]
[1765291157777,0.00561288,90630.0,90625.0,0.022088]
[1765291158053,0.01664674,90630.0,90627.0,0.01103423]
[1765291158197,0.23171912,90628.0,90625.0,0.022088]
[1765291158399,0.00561287,90630.0,90628.0,0.22068144]
[1765291158650,0.00561287,90630.0,90629.0,0.02108543]
[1765291158651,0.004,90630.0,90629.0,0.02108543]
[1765291158870,0.004,90630.0,90629.0,0.00999457]
[1765291159015,0.004,90630.0,90628.0,0.23067572]
[1765291159214,0.00561287,90630.0,90628.0,0.00999457]
[1765291159576,0.00561287,90630.0,90622.0,0.22069489]
[1765291159577,0.01103496,90621.0,90620.0,0.00999457]
[1765291159786,0.23174542,90617.0,90613.0,0.01103594]
[1765291159933,0.23174542,90617.0,90616.0,0.022088]
[1765291160336,0.22070561,90619.0,90615.0,0.0110357]
[1765291160337,0.23174029,90619.0,90615.0,0.0110357]
[1765291160536,0.23174585,90617.0,90614.0,0.00999457]
[1765291160751,0.2207125,90616.0,90614.0,0.00999457]
[1765291160949,0.2207125,90616.0,90609.0,0.2317631]
[1765291160950,0.23175592,90613.0,90612.0,0.022088]
[1765291161220,0.01103545,90617.0,90615.0,0.22071362]
[1765291161221,0.003,90617.0,90615.0,0.22071362]
[1765291161363,0.01103533,90618.0,90615.0,0.001]
[1765291161565,0.01103533,90618.0,90617.0,0.022088]
[1765291161771,0.23174366,90618.0,90615.0,0.001]
[1765291161975,0.01103363,90632.0,90626.0,0.01103436]
[1765291162352,0.00161287,90630.0,90629.0,0.00999457]
[1765291162558,0.01103399,90629.0,90625.0,0.01103448]
[1765291162769,0.00161287,90630.0,90626.0,0.02538085]
[1765291162975,0.23168368,90641.0,90636.0,0.03312114]
[1765291163179,0.01103277,90639.0,90636.0,0.03312114]
[1765291163387,0.00023731,90638.0,90636.0,0.022088]
[1765291163596,0.22089639,90638.0,90636.0,0.022088]
[1765291163803,0.22089639,90638.0,90621.0,0.22069844]
[1765291163804,0.22068347,90628.0,90625.0,0.01998914]
[1765291164007,0.01103423,90627.0,90626.0,0.07043323]
[1765291164439,0.01103484,90622.0,90618.0,0.01103533]
[1765291164631,0.01103436,90626.0,90621.0,0.01103496]
[1765291164913,0.0110346,90624.0,90613.0,0.22071785]
[1765291165111,0.01103557,90616.0,90610.0,0.23071588]
[1765291165344,0.01103582,90614.0,90608.0,0.01103655]
[1765291165528,0.23175195,90615.0,90610.0,0.0331243]
[1765291165675,0.01103521,90619.0,90610.0,0.0331243]
[1765291165676,0.22070777,90618.0,90611.0,0.01103618]
[1765291165876,0.01103496,90621.0,90619.0,0.022088]
[1765291166076,0.01103496,90621.0,90615.0,0.220714]
[1765291166077,0.01103496,90621.0,90609.0,0.24611125]
[1765291166348,0.01103582,90614.0,90613.0,0.022088]
[1765291166561,0.01103582,90614.0,90610.0,0.0110363]
[1765291166562,0.01103533,90618.0,90616.0,0.022088]
[1765291166769,0.01103533,90618.0,90609.0,0.0364207]
[1765291166770,0.003,90622.0,90621.0,0.00999457]
[1765291166972,0.2504,90660.0,90634.0,0.022088]
[1765291166973,0.01103314,90636.0,90634.0,0.022088]
[1765291167176,0.01764,90637.0,90634.0,0.03312138]
[1765291167309,0.01764,90637.0,90635.0,0.03370717]
[1765291167667,0.23830277,90637.0,90635.0,0.03370717]
[1765291167861,0.23991564,90637.0,90635.0,0.03370717]
[1765291168003,0.23991564,90637.0,90630.0,0.01103387]
[1765291168004,0.01103326,90635.0,90630.0,0.01103387]
[1765291168204,0.22067838,90630.0,90626.0,0.022088]
[1765291168410,0.00161287,90635.0,90632.0,0.01103363]
[1765291168610,0.00161287,90635.0,90610.0,0.33108644]
[1765291168611,0.01103375,90631.0,90621.0,0.01103496]
[1765291168829,0.01203386,90630.0,90623.0,0.23172902]
[1765291169053,0.01103423,90627.0,90624.0,0.02650075]
[1765291169250,0.00161287,90630.0,90627.0,0.01103423]
[1765291169665,0.01264674,90630.0,90625.0,0.01103448]
[1765291169845,0.01364673,90630.0,90624.0,0.0110346]
[1765291170178,0.00261287,90630.0,90627.0,0.23171757]
[1765291170386,0.00161287,90630.0,90629.0,0.22067991]
[1765291170610,0.00561287,90630.0,90628.0,0.24816302]
[1765291170821,0.00161287,90630.0,90629.0,0.022088]
[1765291171158,0.00561287,90630.0,90629.0,0.022088]
[1765291171460,0.01103496,90621.0,90616.0,0.01103557]
[1765291171661,0.01103496,90621.0,90613.0,0.22987848]
[1765291171662,0.01103557,90616.0,90612.0,0.01998914]
[1765291171857,0.01103533,90618.0,90608.0,0.22073046]
[1765291172046,0.01203508,90620.0,90606.0,0.02103136]
[1765291172047,0.22073106,90608.0,90606.0,0.00999457]
[1765291172255,0.22073106,90608.0,90588.0,0.01103898]
[1765291172256,0.00099999,90620.0,90588.0,0.01335671]
[1765291172257,0.01103838,90593.0,90588.0,0.01335671]
[1765291172461,0.01103838,90593.0,90592.0,0.02103307]
[1765291172462,0.01764,90593.0,90592.0,0.02103307]
[1765291172673,0.01103691,90605.0,90597.0,0.01103789]
[1765291172883,0.01103582,90614.0,90610.0,0.0110363]
[1765291173102,0.23835936,90613.0,90611.0,0.022088]
[1765291173307,0.23835936,90613.0,90608.0,0.002]
[1765291173308,0.01103618,90611.0,90608.0,0.002]
[1765291173509,0.01103618,90611.0,90609.0,0.02458113]
[1765291173510,0.23176046,90611.0,90609.0,0.02458113]
[1765291173713,0.01103704,90604.0,90602.0,0.00999457]
[1765291173958,0.01764,90613.0,90560.0,0.00099999]
[1765291173959,0.22075311,90599.0,90595.0,0.022088]
[1765291174109,0.01764,90598.0,90597.0,0.23179527]
[1765291174304,0.004,90605.0,90604.0,0.2207408]
[1765291174507,0.02164,90605.0,90604.0,0.2207408]
[1765291174706,0.02164,90605.0,90603.0,0.00999457]
[1765291174908,0.01103764,90599.0,90595.0,0.01103813]
[1765291175129,0.00099999,90600.0,90598.0,0.22075479]
[1765291175333,0.02164,90605.0,90603.0,0.00999457]
[1765291175860,0.01764,90605.0,90603.0,0.00999457]
[1765291176098,0.23837938,90605.0,90604.0,0.02638555]
[1765291176311,0.22074614,90602.0,90600.0,0.022088]
[1765291176531,0.23180342,90594.0,90587.0,0.01103911]
[1765291176739,0.00099999,90590.0,90575.0,0.00999457]
[1765291176943,0.01103996,90580.0,90576.0,0.04914827]
[1765291177071,0.01103959,90583.0,90577.0,0.23184594]
[1765291177072,0.23183701,90581.0,90577.0,0.23184594]
[1765291177275,0.23183701,90581.0,90577.0,0.23184654]
[1765291177501,0.01103959,90583.0,90579.0,0.01104008]
[1765291177660,0.23182422,90586.0,90582.0,0.01103972]
[1765291177878,0.01103959,90583.0,90579.0,0.01104008]
[1765291178075,0.22080007,90580.0,90579.0,0.00038547]
[1765291178328,0.22241294,90580.0,90579.0,0.00038547]
[1765291179309,0.22241294,90580.0,90579.0,0.00138547]
[1765291179710,0.51311294,90580.0,90579.0,0.00038547]
[1765291180089,0.51411294,90580.0,90579.0,0.00138547]
[1765291181033,0.58663049,90580.0,90579.0,0.00138547]
[1765291181569,0.57663593,90580.0,90579.0,0.00138547]
[1765291181698,0.59427593,90580.0,90579.0,0.00038547]
[1765291181905,0.60754196,90580.0,90579.0,0.00038547]
[1765291182117,0.62956564,90580.0,90579.0,0.00038547]
[1765291182337,0.72980723,90580.0,90579.0,0.00038547]
[1765291182542,1.51857396,90580.0,90579.0,0.00038547]
[1765291182736,1.51757396,90580.0,90579.0,0.00038547]
[1765291182960,1.52957396,90580.0,90579.0,0.00138547]
[1765291183428,1.52957396,90580.0,90569.0,0.00227506]
[1765291183429,0.51152367,90570.0,90569.0,0.00227506]
[1765291183614,0.67231513,90570.0,90569.0,0.00227506]
[1765291183973,2.29123256,90570.0,90569.0,0.00227506]
[1765291185623,2.29323256,90570.0,90569.0,0.00227506]
[1765291186017,2.29823256,90570.0,90569.0,0.00327506]
[1765291186240,2.33222973,90570.0,90569.0,0.00327506]
[1765291186616,2.29823256,90570.0,90569.0,0.00327506]
[1765291187418,1.81385325,90570.0,90569.0,0.00327506]
[1765291187632,1.09934957,90570.0,90569.0,0.00327506]
[1765291187884,1.11698957,90570.0,90569.0,0.00327506]
[1765291190370,1.11698957,90570.0,90529.0,0.23196927]
[1765291190371,1.11698957,90570.0,90520.0,0.00999457]
[1765291190372,0.23198091,90525.0,90520.0,0.00999457]
[1765291190514,0.22094229,90522.0,90520.0,0.0001154]
[1765291190712,0.02868667,90525.0,90521.0,0.23198962]
[1765291191026,0.01104679,90524.0,90522.0,0.022088]
[1765291191261,0.01764,90525.0,90523.0,0.22093761]
[1765291191489,0.23857407,90525.0,90523.0,0.05193227]
[1765291191681,0.23857407,90525.0,90520.0,0.01116268]
[1765291191682,0.23857407,90525.0,90520.0,0.0001154]
[1765291191904,0.22094155,90522.0,90520.0,0.0021154]
[1765291192105,0.35322299,90521.0,90520.0,0.0021154]
[1765291192304,0.36321755,90521.0,90520.0,0.0031154]
[1765291192618,2.46989502,90521.0,90520.0,0.0001154]
[1765291192778,2.46989502,90521.0,90510.0,0.0002]
[1765291192779,0.51166761,90511.0,90510.0,0.0002]
[1765291192982,0.51166761,90511.0,90449.0,0.44222932]
[1765291192983,0.51171645,90491.0,90465.0,0.22107826]
[1765291193299,0.51171645,90491.0,90440.0,0.00099999]
[1765291193300,0.52935645,90491.0,90490.0,0.00058459]
[1765291194091,0.53096932,90491.0,90490.0,0.00058459]
[1765291194494,0.53196932,90491.0,90490.0,0.00058459]
[1765291194912,0.53096932,90491.0,90490.0,0.00058459]
[1765291195283,0.53196932,90491.0,90490.0,0.00058459]
[1765291195925,0.53596932,90491.0,90490.0,0.00158459]
[1765291196099,0.53196932,90491.0,90490.0,0.00058459]
[1765291196302,0.53196932,90491.0,90490.0,0.00293268]
[1765291196550,0.53596932,90491.0,90490.0,0.00393268]
[1765291196849,0.53596932,90491.0,90490.0,0.00293268]
[1765291196850,0.60007749,90491.0,90490.0,0.00293268]
[1765291197177,0.556993,90491.0,90490.0,0.00393268]
[1765291197426,0.556993,90491.0,90490.0,0.00293268]
[1765291197427,0.61551599,90491.0,90490.0,0.00293268]
[1765291197599,0.61551599,90491.0,90430.0,0.00119999]
[1765291197600,0.01205582,90450.0,90444.0,0.22112952]
[1765291197808,0.0110557,90451.0,90444.0,0.22112952]
[1765291197809,0.01764,90449.0,90446.0,0.01105632]
[1765291197940,0.01764,90449.0,90444.0,0.00011564]
[1765291197941,0.02869595,90449.0,90448.0,0.022088]
[1765291198135,0.02869595,90449.0,90444.0,0.00011564]
[1765291198136,0.23218266,90447.0,90444.0,0.00011564]
[1765291198337,0.22112773,90446.0,90444.0,0.00011564]
[1765291198616,0.02869595,90449.0,90445.0,0.01105644]
[1765291198782,0.01764,90449.0,90444.0,0.0332602]
[1765291198984,0.37897391,90469.0,90448.0,0.01105607]
[1765291198985,0.23314922,90460.0,90448.0,0.01105607]
[1765291199236,0.01105522,90455.0,90454.0,0.022088]
[1765291199407,0.23216078,90455.0,90454.0,0.022088]
[1765291199725,0.23216078,90455.0,90447.0,0.022088]
[1765291199726,0.01105607,90448.0,90447.0,0.022088]
[1765291199940,0.22112816,90446.0,90444.0,0.00511564]
[1765291200085,0.01105619,90447.0,90444.0,0.00511564]
[1765291200288,0.01105497,90457.0,90444.0,0.05027707]
[1765291200489,0.22112886,90445.0,90444.0,0.00011564]
[1765291200693,0.53108173,90445.0,90444.0,0.00011564]
[1765291201414,0.59360472,90445.0,90444.0,0.00011564]
[1765291202678,0.59360472,90445.0,90444.0,0.00611564]
[1765291202933,0.68864523,90445.0,90444.0,0.00611564]
[1765291203155,0.68864523,90445.0,90444.0,0.00011564]
[1765291203475,0.68864523,90445.0,90444.0,0.00348418]
[1765291203638,0.68964523,90445.0,90444.0,0.00748418]
[1765291203815,2.52785891,90445.0,90444.0,0.00548418]
[1765291204202,0.88289223,90445.0,90444.0,0.00648418]
[1765291204416,0.90053223,90445.0,90444.0,0.00648418]
[1765291204654,0.71491472,90445.0,90444.0,0.00548418]
[1765291204808,0.7369384,90445.0,90444.0,0.00548418]
[1765291205217,0.7389384,90445.0,90444.0,0.00548418]
[1765291205485,0.71591472,90445.0,90444.0,0.00148418]
[1765291205839,0.71691472,90445.0,90444.0,0.00248418]
[1765291206063,0.82642234,90445.0,90444.0,0.00148418]
[1765291206488,0.59660472,90445.0,90444.0,0.00248418]
[1765291206873,0.57596472,90445.0,90444.0,0.00148418]
[1765291207087,0.57596472,90445.0,90444.0,0.00248418]
[1765291207088,0.00461287,90445.0,90444.0,0.00248418]
[1765291207315,0.02225287,90445.0,90444.0,0.00248418]
[1765291207525,0.31195287,90445.0,90444.0,0.00148418]
[1765291207730,0.02125287,90445.0,90444.0,0.00148418]
[1765291207937,0.01925287,90445.0,90444.0,0.00148418]
[1765291208155,0.30995287,90445.0,90444.0,0.00148418]
[1765291208360,0.41391361,90445.0,90444.0,0.00148418]
[1765291208792,0.41491361,90445.0,90444.0,0.00248418]
[1765291208993,0.31195287,90445.0,90444.0,0.00248418]
[1765291209198,0.29331287,90445.0,90444.0,0.00148418]
[1765291209419,0.002,90445.0,90444.0,0.00348418]
[1765291209666,0.001,90445.0,90444.0,0.00348418]
[1765291209898,0.01864,90445.0,90444.0,0.03880638]
[1765291210069,0.002,90445.0,90444.0,0.03880638]
[1765291210388,0.002,90445.0,90444.0,0.03680638]
[1765291210389,0.001,90445.0,90444.0,0.03680638]
[1765291210548,0.2321225,90470.0,90444.0,0.03680638]
[1765291210549,0.01105253,90477.0,90474.0,0.01105289]
[1765291210868,0.01105179,90483.0,90478.0,0.01105241]
[1765291211098,0.01105204,90481.0,90477.0,0.01105253]
[1765291211256,0.22104088,90481.0,90478.0,0.022088]
[1765291211413,0.2907,90484.0,90479.0,0.23209538]
[1765291211644,0.01105057,90493.0,90490.0,0.022088]
[1765291211860,0.01105057,90493.0,90487.0,0.01105131]
[1765291211861,0.01105106,90489.0,90488.0,0.022088]
[1765291212067,0.01105143,90486.0,90482.0,0.022088]
[1765291212273,0.01105143,90486.0,90479.0,0.00011564]
[1765291212274,0.22104088,90481.0,90479.0,0.00011564]
[1765291212480,0.01764,90480.0,90479.0,0.00011564]
[1765291213568,0.01925287,90480.0,90479.0,0.00011564]
[1765291213851,0.02025287,90480.0,90479.0,0.00111564]
[1765291214065,0.02025287,90480.0,90479.0,0.00011564]
[1765291214481,0.01925287,90480.0,90479.0,0.00011564]
[1765291215037,0.03434098,90480.0,90479.0,0.00011564]
[1765291216367,0.32604098,90480.0,90479.0,0.00311564]
[1765291216605,0.31095287,90480.0,90479.0,0.00311564]
[1765291216952,0.31095287,90480.0,90430.0,0.022288]
[1765291216953,0.23221882,90433.0,90430.0,0.022288]
[1765291217126,0.23880264,90432.0,90430.0,0.00031573]
[1765291217349,0.01764,90432.0,90430.0,0.00031573]
[1765291217828,0.01764,90432.0,90431.0,0.022088]
[1765291218203,0.01864,90432.0,90431.0,0.022088]
[1765291219199,0.51186309,90431.0,90430.0,0.00331573]
[1765291219418,0.51186309,90431.0,90430.0,0.00031573]
[1765291219823,0.52954309,90431.0,90430.0,0.00331573]
[1765291220047,0.51186309,90431.0,90430.0,0.00031573]
[1765291220236,0.53115596,90431.0,90430.0,0.00031573]
[1765291220469,0.53215596,90431.0,90430.0,0.00231573]
[1765291220804,0.64266358,90431.0,90430.0,0.00231573]